bitfinex/quotes_SOLUSD_20230102
["timestamp","ask_amount","ask_price","bid_price","bid_amount"]
[1672645356765,9.59546278,11.029,11.0,175.9769617]
[1672645356976,30.0,11.027,11.001,102.4857417]
[1672645357187,20.0,11.026,11.002,68.26]
[1672645357502,20.0,11.026,11.003,30.0]
[1672645357723,20.0,11.029,11.01,6.96]
[1672645357923,20.0,11.029,11.012,30.0]
[1672645358128,20.0,11.031,11.013,68.2]
[1672645358361,20.0,11.031,11.013,130.05150399]
[1672645358546,20.0,11.031,11.014,30.0]
[1672645358961,20.0,11.031,11.014,89.1000117]
[1672645359192,30.0,11.031,11.013,68.2]
[1672645359390,20.0,11.03,11.012,30.0]
[1672645359815,20.0,11.03,11.014,30.0]
[1672645360026,124.1043,11.039,11.015,68.18]
[1672645360345,124.1043,11.039,11.015,297.61183623]
[1672645360346,30.0,11.038,11.015,297.61183623]
[1672645360543,30.0,11.032,11.012,30.0]
[1672645360757,50.22,11.031,11.012,30.0]
[1672645361084,30.0,11.03,11.013,68.2]
[1672645361297,36.96,11.03,11.013,68.2]
[1672645361488,36.96,11.03,11.011,68.21]
[1672645361698,29.59546278,11.029,11.011,68.21]
[1672645361907,30.0,11.028,11.012,30.0]
[1672645362135,20.0,11.027,11.012,30.0]
[1672645362556,20.0,11.027,11.013,68.2]
[1672645362762,6.96,11.02,10.99,7.01]
[1672645362975,6.96,11.02,10.992,272.5]
[1672645363189,20.0,11.019,10.995,39.84949777]
[1672645363384,20.0,11.019,10.998,98.29]
[1672645363595,50.22,11.029,11.0,6.97]
[1672645363812,50.22,11.029,11.001,68.27]
[1672645364025,30.0,11.028,11.002,30.0]
[1672645364343,30.0,11.028,11.004,30.0]
[1672645364552,39.59546278,11.031,11.005,68.25]
[1672645364760,57.19,11.03,11.006,30.0]
[1672645364972,6.97,11.03,11.007,68.23]
[1672645365592,50.22,11.029,11.008,30.0]
[1672645365803,30.0,11.029,11.01,30.0]
[1672645366009,30.0,11.031,11.011,68.21]
[1672645366225,30.0,11.031,11.012,30.0]
[1672645366438,24.4647,11.032,11.013,68.2]
[1672645366650,24.4647,11.032,11.014,30.0]
[1672645366861,24.4647,11.032,11.016,30.0]
[1672645367076,24.4647,11.032,11.017,68.17]
[1672645367498,24.4647,11.032,11.013,68.2]
[1672645367708,24.4647,11.032,11.015,30.0]
[1672645367914,50.25,11.031,11.005,68.25]
[1672645368143,59.84546278,11.031,11.008,68.23]
[1672645368338,65.1,11.03,11.008,68.23]
[1672645368541,65.1,11.03,11.004,30.0]
[1672645368542,50.26,11.029,11.004,30.0]
[1672645368759,50.0,11.028,11.005,68.25]
[1672645368968,13.99,11.02,11.001,24.141]
[1672645369175,20.0,11.019,11.001,24.141]
[1672645369403,80.31,11.018,10.996,50.1628311]
[1672645369618,20.0,11.017,10.997,67.29]
[1672645369815,20.0,11.017,10.998,30.0]
[1672645370019,20.0,11.017,10.999,68.28]
[1672645370232,12.58319942,11.016,11.0,6.97]
[1672645370439,12.58319942,11.016,11.001,68.27]
[1672645370643,12.58319942,11.016,11.002,30.0]
[1672645370862,12.58319942,11.016,11.003,68.26]
[1672645371175,12.58319942,11.016,11.002,30.0]
[1672645371395,12.58319942,11.016,11.003,61.51616443]
[1672645371607,12.58319942,11.016,11.004,30.0]
[1672645371811,12.58319942,11.016,11.004,98.25]
[1672645372010,20.0,11.015,11.004,30.0]
[1672645372216,12.58319942,11.014,11.004,30.0]
[1672645372447,20.0,11.013,11.0,30.0]
[1672645372639,12.58319942,11.012,11.0,30.0]
[1672645372849,12.58319942,11.012,11.001,340.77]
[1672645373280,12.58319942,11.012,11.002,30.0]
[1672645373481,12.58319942,11.012,11.003,68.26]
[1672645373689,12.58319942,11.012,11.004,30.0]
[1672645373904,20.0,11.011,11.002,30.0]
[1672645374115,12.58319942,11.01,11.002,30.0]
[1672645375170,12.58319942,11.01,11.003,68.26]
[1672645375381,12.58319942,11.01,11.004,29.0]
[1672645375711,12.58319942,11.01,11.006,30.0]
[1672645375900,12.58319942,11.01,11.007,68.23]
[1672645376110,12.58319942,11.01,11.008,30.0]
[1672645376756,0.00319942,11.01,11.009,68.22]
[1672645377178,0.00319942,11.01,11.008,30.0]
[1672645377391,0.00319942,11.01,11.006,61.51616443]
[1672645377608,0.00319942,11.01,11.003,30.0]
[1672645377797,0.00319942,11.01,11.005,272.5]
[1672645378235,0.00319942,11.01,11.007,272.5]
[1672645378443,0.00319942,11.01,11.009,30.0]
[1672645380019,20.0,11.024,11.01,30.0]
[1672645380221,20.0,11.024,11.01,36.96]
[1672645380432,20.0,11.024,11.011,67.66777058]
[1672645380750,20.0,11.024,11.012,30.0]
[1672645381505,20.0,11.024,11.013,340.16777058]
[1672645381693,20.0,11.024,11.014,30.0]
[1672645381903,20.0,11.024,11.012,30.0]
[1672645382744,20.0,11.024,11.013,67.66777058]
[1672645382963,53.15,11.039,11.015,272.5]
[1672645383172,53.15,11.039,11.02,7.02]
[1672645383173,1.98,11.039,11.02,7.02]
[1672645383396,1.98,11.039,11.022,272.5]
[1672645383703,1.98,11.039,11.021,68.15]
[1672645383704,1.98,11.039,11.024,30.0]
[1672645383915,1.98,11.039,11.022,68.14]
[1672645384124,30.0,11.037,11.011,24.4064]
[1672645384339,51.19,11.036,11.011,24.4064]
[1672645384535,30.0,11.035,11.011,24.4064]
[1672645384746,51.2,11.034,11.011,365.1164]
[1672645385067,51.19,11.036,11.014,272.5]
[1672645385282,51.18,11.038,11.016,272.5]
[1672645385597,51.18,11.038,11.018,30.0]
[1672645385793,1.98,11.039,11.02,279.46]
[1672645386005,1.98,11.039,11.022,30.0]
[1672645387064,1.98,11.039,11.023,68.13]
[1672645387466,1.98,11.039,11.021,68.15]
[1672645387682,1.98,11.039,11.022,30.0]
[1672645387889,1.98,11.039,11.023,68.13]
[1672645388103,1.98,11.039,11.025,30.0]
[1672645388334,1.98,11.039,11.026,340.62]
[1672645388518,1.98,11.039,11.026,68.12]
[1672645388731,1.98,11.039,11.023,68.13]
[1672645388940,1.98,11.039,11.022,30.0]
[1672645389156,21.98,11.039,11.022,30.0]
[1672645389710,1.98,11.039,11.023,68.13]
[1672645389917,20.0,11.038,11.023,68.13]
[1672645390107,1.98,11.039,11.024,302.5]
[1672645390322,1.98,11.039,11.026,272.5]
[1672645390550,1.98,11.039,11.028,272.5]
[1672645390745,1.98,11.039,11.03,30.0]
[1672645390953,51.13,11.059,11.032,272.5]
[1672645391175,51.13,11.059,11.033,340.57]
[1672645391383,51.13,11.059,11.033,68.07]
[1672645391598,39.59546278,11.058,11.033,68.07]
[1672645391795,51.14,11.057,11.033,68.07]
[1672645392120,30.0,11.055,11.034,30.0]
[1672645392331,51.21,11.054,11.035,68.06]
[1672645392549,30.0,11.053,11.033,68.07]
[1672645392859,7.02,11.05,11.032,118.679]
[1672645393048,30.0,11.048,11.032,118.679]
[1672645393480,30.0,11.048,11.033,68.07]
[1672645393893,66.65451755,11.048,11.033,30.0]
[1672645394120,66.65451755,11.05,11.033,98.07]
[1672645394315,66.65451755,11.055,11.033,98.07]
[1672645394641,66.65451755,11.055,11.033,370.57]
[1672645394851,30.0,11.055,11.033,370.57]
[1672645395063,30.0,11.055,11.035,30.0]
[1672645395267,30.0,11.055,11.036,357.55]
[1672645395483,30.0,11.056,11.037,30.0]
[1672645395686,30.0,11.056,11.039,30.0]
[1672645395890,20.0,11.055,11.04,68.03]
[1672645396321,66.65451755,11.057,11.041,30.0]
[1672645396641,30.0,11.056,11.042,68.02]
[1672645397043,30.0,11.056,11.041,30.0]
[1672645397254,66.65451755,11.058,11.042,68.02]
[1672645397694,66.65451755,11.058,11.043,302.5]
[1672645397887,66.65451755,11.059,11.044,68.0]
[1672645398302,51.21,11.066,11.043,30.0]
[1672645398303,117.86451755,11.066,11.043,30.0]
[1672645398532,66.65451755,11.066,11.045,30.0]
[1672645398740,66.65451755,11.066,11.047,256.262771]
[1672645398938,66.65451755,11.067,11.049,256.262771]
[1672645399150,66.65451755,11.067,11.05,324.232771]
[1672645399365,30.0,11.067,11.051,30.0]
[1672645399568,73.61451755,11.07,11.052,67.96]
[1672645399773,51.19,11.069,11.051,30.0]
[1672645400832,51.19,11.069,11.031,30.0]
[1672645400833,14.07,11.06,11.031,30.0]
[1672645401046,154.45551198,11.048,11.031,30.0]
[1672645401259,51.27,11.059,11.031,30.0]
[1672645401573,7.05,11.06,11.035,30.0]
[1672645401901,30.0,11.058,11.038,30.0]
[1672645402097,20.0,11.057,11.04,279.48]
[1672645402313,20.0,11.061,11.042,30.0]
[1672645402644,37.02,11.06,11.043,68.01]
[1672645402834,30.0,11.058,11.036,178.5241]
[1672645403040,71.28,11.057,11.036,110.4741]
[1672645403262,30.0,11.056,11.036,110.4741]
[1672645403479,71.28,11.057,11.036,110.4741]
[1672645403480,20.0,11.055,11.037,98.05]
[1672645403886,20.0,11.055,11.038,30.0]
[1672645404095,30.0,11.058,11.038,30.0]
[1672645404096,20.0,11.057,11.04,30.0]
[1672645404326,30.0,11.056,11.039,68.04]
[1672645404509,20.0,11.055,11.04,30.0]
[1672645405060,51.2,11.064,11.042,272.5]
[1672645405369,30.0,11.062,11.043,68.01]
[1672645405563,20.0,11.061,11.041,68.02]
[1672645405988,51.19,11.066,11.041,68.02]
[1672645406199,6.99,11.06,11.041,68.02]
[1672645406420,6.99,11.06,11.042,30.0]
[1672645407046,6.99,11.06,11.043,68.01]
[1672645407245,20.0,11.059,11.043,68.01]
[1672645408313,30.0,11.058,11.043,68.01]
[1672645408517,30.0,11.058,11.04,68.03]
[1672645408715,20.0,11.057,11.041,30.0]
[1672645408921,20.0,11.057,11.042,68.02]
[1672645409137,20.0,11.057,11.04,68.03]
[1672645409360,30.0,11.056,11.039,98.04]
[1672645409570,20.0,11.055,11.039,98.04]
[1672645410717,20.0,11.057,11.039,98.04]
[1672645411261,7.02,11.05,11.039,68.04]
[1672645411451,7.02,11.05,11.032,68.08]
[1672645411662,7.02,11.05,11.033,30.0]
[1672645411981,7.02,11.05,11.034,68.07]
[1672645412511,7.02,11.05,11.03,68.09]
[1672645412732,30.0,11.048,11.031,30.0]
[1672645412931,51.21,11.054,11.032,68.08]
[1672645413131,20.0,11.053,11.032,68.08]
[1672645413348,20.0,11.053,11.033,30.0]
[1672645413671,112.2632,11.057,11.034,340.57]
[1672645413883,30.0,11.056,11.035,30.0]
[1672645414071,30.0,11.056,11.036,68.05]
[1672645414289,30.0,11.056,11.037,30.0]
[1672645414499,30.0,11.056,11.039,30.0]
[1672645414723,100.76898704,11.056,11.038,68.04]
[1672645415988,100.76898704,11.056,11.0,375.63815922]
[1672645415989,35.11,11.05,11.02,272.5]
[1672645416185,30.0,11.048,11.021,30.0]
[1672645416400,20.0,11.047,11.021,30.0]
[1672645416611,20.0,11.047,11.023,272.5]
[1672645416935,20.0,11.047,11.024,68.13]
[1672645417134,30.0,11.046,11.026,30.0]
[1672645417343,51.22,11.058,11.03,6.97]
[1672645417551,35.1,11.06,11.032,30.0]
[1672645417552,20.0,11.057,11.032,30.0]
[1672645417756,84.73406902,11.056,11.035,30.0]
[1672645418081,153.7957414,11.059,11.035,30.0]
[1672645418082,30.0,11.059,11.036,340.55]
[1672645418305,30.0,11.059,11.037,30.0]
[1672645418495,84.73406902,11.058,11.039,30.0]
[1672645418706,84.73406902,11.058,11.04,68.03]
[1672645418934,30.0,11.057,11.04,68.03]
[1672645419125,30.0,11.057,11.037,138.7428]
[1672645419126,30.0,11.057,11.039,30.0]
[1672645419337,84.73406902,11.056,11.04,68.03]
[1672645419656,30.0,11.055,11.04,68.03]
[1672645419981,30.0,11.055,11.041,30.0]
[1672645420193,20.0,11.054,11.041,30.0]
[1672645420815,20.0,11.054,11.04,68.03]
[1672645421450,20.0,11.054,11.039,30.0]
[1672645421641,30.0,11.054,11.04,68.03]
[1672645421863,20.0,11.053,11.041,30.0]
[1672645422616,20.0,11.055,11.043,30.0]
[1672645423015,66.65451755,11.061,11.045,30.0]
[1672645423228,84.73406902,11.057,11.044,68.01]
[1672645423467,20.0,11.056,11.043,30.0]
[1672645423982,20.0,11.056,11.044,68.01]
[1672645424175,20.0,11.056,11.043,30.0]
[1672645424598,20.0,11.056,11.042,68.02]
[1672645424810,20.0,11.056,11.043,30.0]
[1672645429769,223.97432797,11.061,11.044,340.51]
[1672645429986,84.73406902,11.061,11.044,340.51]
[1672645430177,66.65451755,11.059,11.045,30.0]
[1672645430598,30.0,11.058,11.045,30.0]
[1672645430814,66.65451755,11.059,11.045,30.0]
[1672645431020,30.0,11.06,11.047,30.0]
[1672645431438,84.73406902,11.061,11.047,30.0]
[1672645431879,96.65451755,11.06,11.046,67.99]
[1672645432085,96.65451755,11.06,11.043,148.7403]
[1672645432086,66.65451755,11.058,11.045,68.0]
[1672645432279,66.65451755,11.057,11.043,118.7403]
[1672645432490,30.0,11.056,11.043,118.7403]
[1672645432707,96.65451755,11.056,11.038,68.04]
[1672645432925,96.65451755,11.056,11.039,302.5]
[1672645433118,20.0,11.055,11.041,272.5]
[1672645433330,66.65451755,11.056,11.042,30.0]
[1672645433540,66.65451755,11.058,11.045,30.0]
[1672645433772,30.0,11.062,11.045,370.5]
[1672645433966,114.73406902,11.062,11.045,302.5]
[1672645434298,30.0,11.06,11.045,302.5]
[1672645434504,66.65451755,11.061,11.046,67.99]
[1672645434921,66.65451755,11.061,11.046,340.49]
[1672645435127,66.65451755,11.061,11.047,30.0]
[1672645435453,30.0,11.061,11.048,67.98]
[1672645435664,30.0,11.061,11.046,67.99]
[1672645435869,66.65451755,11.062,11.047,30.0]
[1672645436290,66.65451755,11.062,11.049,30.0]
[1672645436917,20.0,11.061,11.049,30.0]
[1672645437448,20.0,11.061,11.05,67.97]
[1672645437877,20.0,11.061,11.051,30.0]
[1672645438070,20.0,11.062,11.051,30.0]
[1672645438281,86.65451755,11.062,11.051,30.0]
[1672645438807,30.0,11.061,11.05,67.97]
[1672645439019,20.0,11.06,11.048,67.98]
[1672645439336,20.0,11.06,11.049,30.0]
[1672645439563,20.0,11.061,11.049,30.0]
[1672645440169,20.0,11.061,11.05,67.97]
[1672645440820,20.0,11.061,11.047,97.99]
[1672645441008,20.0,11.061,11.049,30.0]
[1672645441220,20.0,11.061,11.05,67.97]
[1672645441430,20.0,11.061,11.051,30.0]
[1672645442474,406.8028771,11.059,11.031,30.0]
[1672645442698,2.91311072,11.032,11.001,156.56015534]
[1672645443008,68.09,11.031,11.006,108.8389]
[1672645443227,303.58037511,11.032,11.007,190.44733]
[1672645443435,296.71275102,11.03,11.007,220.44733]
[1672645443640,296.71275102,11.03,11.01,35.08]
[1672645443970,0.00037511,11.032,11.02,14.06]
[1672645444283,0.00037511,11.032,11.022,30.0]
[1672645444478,51.13,11.048,11.024,30.0]
[1672645444692,404.49548682,11.051,11.03,7.04]
[1672645445017,551.21073965,11.05,11.03,7.04]
[1672645445213,67.3033,11.049,11.028,68.1]
[1672645445420,51.13,11.048,11.028,185.8454]
[1672645445632,30.0,11.047,11.029,30.0]
[1672645445842,51.14,11.046,11.029,30.0]
[1672645446056,30.0,11.047,11.029,30.0]
[1672645446266,87.99,11.046,11.029,30.0]
[1672645446489,20.0,11.046,11.029,30.0]
[1672645446701,20.0,11.046,11.031,30.0]
[1672645447016,30.0,11.046,11.032,17.0]
[1672645447331,20.0,11.045,11.029,68.1]
[1672645447522,20.0,11.045,11.028,117.7454]
[1672645447733,30.0,11.044,11.028,117.7454]
[1672645447949,20.0,11.043,11.028,117.7454]
[1672645448690,88.02,11.043,11.028,117.7454]
[1672645448903,30.0,11.042,11.028,117.7454]
[1672645449223,20.0,11.041,11.029,30.0]
[1672645449430,20.0,11.041,11.028,117.7454]
[1672645449851,20.0,11.042,11.029,30.0]
[1672645450278,30.0,11.043,11.029,30.0]
[1672645450587,20.0,11.042,11.029,30.0]
[1672645450795,20.0,11.044,11.029,30.0]
[1672645451009,20.0,11.044,11.03,7.02]
[1672645451208,20.0,11.05,11.031,68.09]
[1672645451416,30.0,11.05,11.032,30.0]
[1672645451626,20.0,11.049,11.032,30.0]
[1672645451844,30.0,11.048,11.032,30.0]
[1672645452051,87.99,11.047,11.029,30.0]
[1672645452375,30.0,11.046,11.029,30.0]
[1672645452588,20.0,11.045,11.03,68.1]
[1672645452783,20.0,11.047,11.032,30.0]
[1672645452993,20.0,11.047,11.03,68.1]
[1672645453205,30.0,11.047,11.029,30.0]
[1672645453528,30.0,11.045,11.029,30.0]
[1672645453740,20.0,11.044,11.029,302.5]
[1672645453948,20.0,11.044,11.029,370.6]
[1672645454139,20.0,11.044,11.029,340.6]
[1672645454355,20.0,11.044,11.029,272.5]
[1672645454564,20.0,11.044,11.03,30.0]
[1672645454795,20.0,11.045,11.032,30.0]
[1672645454992,20.0,11.046,11.032,30.0]
[1672645455412,20.0,11.046,11.031,272.5]
[1672645455621,20.0,11.046,11.032,30.0]
[1672645455835,20.0,11.046,11.032,302.5]
[1672645456686,20.0,11.049,11.035,30.0]
[1672645457108,30.0,11.05,11.035,30.0]
[1672645457305,20.0,11.049,11.035,30.0]
[1672645457715,20.0,11.049,11.033,68.08]
[1672645457716,30.0,11.048,11.033,68.08]
[1672645457950,20.0,11.047,11.032,30.0]
[1672645458148,30.0,11.045,11.031,272.5]
[1672645458355,20.0,11.044,11.032,30.0]
[1672645458672,30.0,11.043,11.023,68.14]
[1672645458880,20.0,11.042,11.026,272.5]
[1672645459093,20.0,11.042,11.028,302.5]
[1672645459512,20.0,11.046,11.03,272.5]
[1672645459726,30.0,11.046,11.031,30.0]
[1672645459941,20.0,11.045,11.033,30.0]
[1672645460147,20.0,11.047,11.033,30.0]
[1672645460567,20.0,11.049,11.033,30.0]
[1672645460775,30.0,11.048,11.033,30.0]
[1672645460999,20.0,11.047,11.031,30.0]
[1672645461836,30.0,11.046,11.029,68.1]
[1672645462047,33.32725877,11.055,11.04,7.02]
[1672645462360,406.08805349,11.09,11.047,272.5]
[1672645462554,408.10249253,11.094,11.054,272.5]
[1672645462768,407.52375467,11.092,11.06,7.02]
[1672645462977,50.96,11.093,11.062,272.5]
[1672645462978,7.02,11.09,11.062,272.5]
[1672645463195,67.74,11.089,11.062,199.81]
[1672645463407,7.01999857,11.07,11.064,30.0]
[1672645463602,7.01999857,11.07,11.065,67.88]
[1672645463813,7.01999857,11.07,11.061,67.91]
[1672645464039,7.01999857,11.07,11.062,17.0]
[1672645464258,7.01999857,11.07,11.062,30.0]
[1672645464564,7.01999857,11.07,11.064,302.5]
[1672645464782,183.3163,11.088,11.066,272.5]
[1672645464997,67.67,11.099,11.07,6.96]
[1672645465193,67.73,11.09,11.071,67.85]
[1672645465404,30.0,11.089,11.072,17.0]
[1672645465616,67.74,11.088,11.072,17.0]
[1672645466026,30.0,11.087,11.07,67.85]
[1672645466237,30.0,11.087,11.07,7.02]
[1672645466452,67.72,11.091,11.071,187.7373495]
[1672645466661,30.0,11.096,11.072,302.5]
[1672645466876,67.7,11.095,11.074,272.5]
[1672645467083,30.0,11.096,11.077,30.0]
[1672645467301,30.0,11.096,11.078,67.8]
[1672645467520,67.7,11.095,11.073,67.83]
[1672645467827,50.0,11.094,11.073,67.83]
[1672645468050,67.71,11.093,11.067,67.87]
[1672645468236,20.0,11.092,11.068,30.0]
[1672645468457,6.96,11.09,11.069,67.36]
[1672645468658,87.74,11.089,11.07,30.0]
[1672645468992,20.0,11.088,11.072,272.5]
[1672645469176,20.0,11.092,11.073,30.0]
[1672645469391,67.72,11.091,11.074,272.5]
[1672645469607,20.0,11.09,11.075,30.0]
[1672645469833,20.0,11.092,11.077,272.5]
[1672645470036,20.0,11.092,11.076,67.81]
[1672645470037,20.0,11.092,11.079,30.0]
[1672645470230,87.69,11.096,11.076,67.81]
[1672645470441,87.69,11.096,11.078,30.0]
[1672645470777,30.0,11.095,11.078,30.0]
[1672645470974,30.0,11.093,11.078,30.0]
[1672645471306,20.0,11.092,11.076,67.81]
[1672645471505,20.0,11.092,11.08,6.97]
[1672645471823,20.0,11.092,11.075,30.0]
[1672645471824,178.2706,11.104,11.093,0.00469077]
[1672645472025,9.28524538,11.099,11.093,0.00469077]
[1672645472267,67.68,11.098,11.093,0.00469077]
[1672645472441,67.67,11.099,11.093,0.00469077]
[1672645472656,30.0,11.098,11.093,0.00469077]
[1672645472866,67.69,11.097,11.093,0.00469077]
[1672645473081,67.67,11.099,11.093,0.00469077]
[1672645473294,20.0,11.098,11.093,0.00469077]
[1672645473503,67.69,11.097,11.093,0.00469077]
[1672645473699,20.0,11.096,11.093,0.00469077]
[1672645474343,87.63,11.106,11.093,0.00469077]
[1672645474539,30.0,11.105,11.093,0.00469077]
[1672645474761,87.64,11.104,11.093,0.00469077]
[1672645474966,30.0,11.103,11.093,0.00469077]
[1672645475170,87.66,11.102,11.093,0.00469077]
[1672645475380,30.0,11.101,11.093,0.00469077]
[1672645475605,30.0,11.099,11.093,0.00469077]
[1672645475803,20.0,11.098,11.093,0.00469077]
[1672645476224,67.67,11.1,11.093,0.00469077]
[1672645476442,6.98,11.11,11.093,0.00469077]
[1672645476443,67.63,11.106,11.093,0.00469077]
[1672645476854,67.64,11.104,11.093,0.00469077]
[1672645477063,30.0,11.103,11.093,0.00469077]
[1672645478344,30.0,11.103,11.086,29.50469077]
[1672645478345,20.0,11.102,11.086,29.50469077]
[1672645478674,20.0,11.102,11.088,302.5]
[1672645478972,20.0,11.106,11.09,30.0]
[1672645479401,67.64,11.105,11.09,30.0]
[1672645479608,30.0,11.103,11.087,67.75]
[1672645479801,87.66,11.102,11.081,67.78]
[1672645480014,87.66,11.102,11.082,302.5]
[1672645480218,20.0,11.102,11.084,272.5]
[1672645480449,20.0,11.102,11.083,67.77]
[1672645480450,30.0,11.104,11.086,30.0]
[1672645480645,30.0,11.102,11.086,30.0]
[1672645480860,20.0,11.101,11.087,67.75]
[1672645481071,20.0,11.101,11.088,30.0]
[1672645481395,30.0,11.104,11.089,67.74]
[1672645481396,20.0,11.103,11.089,67.74]
[1672645481607,20.0,11.103,11.088,30.0]
[1672645481796,20.0,11.103,11.09,6.97]
[1672645482009,20.0,11.108,11.093,30.0]
[1672645482345,30.0,11.112,11.093,97.71]
[1672645482346,87.6,11.111,11.093,97.71]
[1672645482660,30.0,11.11,11.093,30.0]
[1672645482868,30.0,11.108,11.093,30.0]
[1672645483176,20.0,11.107,11.094,17.0]
[1672645483817,30.0,11.109,11.091,67.72]
[1672645484022,118.5638,11.116,11.092,15.80730786]
[1672645484333,9.28524538,11.119,11.093,67.71]
[1672645484536,30.0,11.118,11.088,30.0]
[1672645484746,9.28524538,11.115,11.087,177.6343]
[1672645484953,67.58,11.114,11.082,67.78]
[1672645485168,35.14,11.11,11.078,272.5]
[1672645485369,87.61,11.109,11.08,30.0]
[1672645485580,6.99,11.1,11.081,67.78]
[1672645485917,20.0,11.099,11.08,30.0]
[1672645486130,20.0,11.099,11.081,67.78]
[1672645486319,30.0,11.102,11.081,67.78]
[1672645486530,7.02,11.1,11.081,67.78]
[1672645486736,30.0,11.098,11.079,30.0]
[1672645487052,20.0,11.097,11.079,30.0]
[1672645487279,20.0,11.097,11.081,30.0]
[1672645488332,30.0,11.096,11.08,67.79]
[1672645488553,20.0,11.095,11.078,110.6784]
[1672645488850,30.0,11.094,11.078,110.6784]
[1672645489060,20.0,11.093,11.079,67.8]
[1672645489470,20.0,11.093,11.079,340.3]
[1672645489684,20.0,11.095,11.079,67.8]
[1672645489907,87.69,11.097,11.078,110.6784]
[1672645490111,67.69,11.097,11.078,110.6784]
[1672645490306,20.0,11.096,11.079,67.8]
[1672645490513,87.67,11.099,11.08,30.0]
[1672645491062,30.0,11.098,11.08,30.0]
[1672645491275,87.69,11.097,11.079,67.8]
[1672645491489,30.0,11.096,11.078,110.6784]
[1672645491791,87.7,11.095,11.078,110.6784]
[1672645491999,30.0,11.094,11.078,110.6784]
[1672645492318,30.0,11.092,11.078,110.6784]
[1672645492530,20.0,11.091,11.079,30.0]
[1672645492734,87.71,11.093,11.079,30.0]
[1672645492735,20.0,11.093,11.079,302.5]
[1672645492945,20.0,11.093,11.079,30.0]
[1672645493159,20.0,11.094,11.079,30.0]
[1672645493372,20.0,11.094,11.079,97.8]
[1672645493682,20.0,11.095,11.079,67.8]
[1672645493898,20.0,11.095,11.078,110.6784]
[1672645494213,30.0,11.094,11.078,110.6784]
[1672645494399,35.04,11.09,11.069,67.86]
[1672645494609,67.74,11.089,11.068,30.0]
[1672645494840,20.0,11.088,11.07,272.5]
[1672645495043,30.0,11.086,11.071,30.0]